bitfinex/quotes_ETHUSD_20250215
["timestamp","ask_amount","ask_price","bid_price","bid_amount"]
[1739640699622,4.98923721,2682.5,2682.2,3.72827]
[1739640699824,4.98923721,2682.5,2682.1,0.005]
[1739640701037,4.98923721,2682.5,2682.3,3.72813]
[1739640701238,4.98923721,2682.5,2682.4,3.728]
[1739640702959,3.0,2683.4,2683.0,3.72717]
[1739640702960,4.98923721,2683.1,2683.0,3.72717]
[1739640704283,4.98923721,2683.6,2682.8,0.8071]
[1739640704560,4.98923721,2683.6,2683.4,3.72652]
[1739640704719,4.98923721,2683.6,2683.5,3.72647]
[1739640705731,5.48816093,2683.6,2683.0,0.8324]
[1739640705951,5.48816093,2683.6,2683.1,3.72699]
[1739640706159,9.21450093,2683.6,2683.1,3.72699]
[1739640706961,3.72668,2683.4,2682.8,3.72742]
[1739640707157,3.0,2683.5,2682.9,3.72725]
[1739640707348,1.15872414,2683.4,2682.9,3.72725]
[1739640707857,6.14796135,2683.4,2683.1,3.72701]
[1739640708058,6.14796135,2683.4,2683.2,3.72682]
[1739640708059,4.98923721,2683.4,2683.2,3.72682]
[1739640708260,4.98923721,2683.4,2683.1,3.72701]
[1739640708423,4.98923721,2683.4,2683.3,3.72675]
[1739640711264,4.98923721,2683.4,2683.3,4.55915]
[1739640711962,4.98923721,2684.2,2683.9,3.7259]
[1739640712261,4.98923721,2684.1,2683.9,3.7259]
[1739640713437,4.98923721,2684.1,2683.8,3.72605]
[1739640713838,4.98923721,2684.1,2683.9,3.72582]
[1739640717176,5.48816093,2684.1,2683.7,3.72614]
[1739640717334,5.48816093,2684.1,2683.8,3.72602]
[1739640717833,0.04657401,2684.0,2683.5,3.72638]
[1739640718032,9.21389093,2684.1,2683.7,3.72617]
[1739640718033,5.48816093,2684.1,2683.7,3.72617]
[1739640718452,5.48816093,2684.1,2683.5,3.72646]
[1739640718766,3.72601,2683.9,2683.3,3.72667]
[1739640718934,4.98923721,2683.8,2683.6,3.72631]
[1739640719132,4.98923721,2683.8,2683.7,3.72619]
[1739640719341,4.98923721,2683.8,2683.5,3.72644]
[1739640719547,4.98923721,2683.8,2683.5,7.45283]
[1739640719871,4.98923721,2683.8,2683.5,3.72639]
[1739640720230,4.98923721,2683.8,2683.6,3.72622]
[1739640720444,4.98923721,2683.8,2683.6,7.45248]
[1739640720733,4.98923721,2683.8,2683.6,3.72622]
[1739640720939,4.98923721,2683.8,2683.4,7.45308]
[1739640721164,4.98923721,2683.8,2683.5,3.72642]
[1739640721361,4.98923721,2683.8,2683.6,3.72632]
[1739640721739,4.98923721,2683.8,2683.6,7.45254]
[1739640721942,4.98923721,2683.8,2683.6,3.72622]
[1739640722239,4.98923721,2683.8,2683.7,3.72619]
[1739640722449,4.98923721,2683.8,2683.7,4.53219]
[1739640722647,4.98923721,2683.8,2683.7,5.358031]
[1739640724074,4.98923721,2684.7,2684.3,3.72525]
[1739640724288,4.98923721,2684.6,2684.3,3.72525]
[1739640724653,4.98923721,2684.5,2684.4,3.72521]
[1739640726045,4.98923721,2684.5,2684.3,3.72536]
[1739640726281,4.98923721,2684.5,2684.3,7.45062]
[1739640726584,4.98923721,2684.5,2684.4,3.72522]
[1739640727877,4.98923721,2684.5,2684.4,4.53122]
[1739640728180,4.98923721,2685.2,2684.7,3.72467]
[1739640728558,4.98923721,2685.2,2684.9,3.7245]
[1739640728895,4.98923721,2685.2,2684.7,3.72467]
[1739640729846,4.98923721,2685.2,2684.8,3.72457]
[1739640730045,5.78816093,2685.2,2684.8,3.72457]
[1739640730293,5.78816093,2685.2,2684.7,3.72467]
[1739640731149,3.77088819,2685.1,2684.5,3.72503]
[1739640731351,3.72433,2685.1,2684.5,3.72503]
[1739640731749,5.78816093,2685.2,2684.5,3.72503]
[1739640732085,0.95121709,2685.1,2684.7,4.53069]
[1739640732277,0.95121709,2685.1,2684.5,4.531]
[1739640732470,4.72212857,2685.1,2684.5,3.725]
[1739640732782,4.67556709,2685.1,2684.5,3.725]
[1739640733485,4.67556709,2685.1,2684.5,3.72499]
[1739640733686,0.96648043,2685.0,2684.5,3.72499]
[1739640733873,0.96648043,2685.0,2684.5,7.44999]
[1739640734071,0.96648043,2685.0,2684.5,3.72499]
[1739640734273,0.96648043,2685.0,2684.5,7.44999]
[1739640734463,0.96648043,2685.0,2684.5,3.72495]
[1739640734658,5.45831225,2684.9,2684.4,3.72522]
[1739640734858,5.45831225,2684.9,2684.6,7.44981]
[1739640735063,5.45831225,2684.9,2684.6,7.44973]
[1739640735250,5.45831225,2684.9,2684.6,3.72486]
[1739640735682,5.45831225,2684.9,2684.6,7.4497]
[1739640735888,4.98923721,2684.9,2684.6,3.72484]
[1739640736588,4.98923721,2684.9,2684.7,3.72481]
[1739640736888,4.98923721,2684.9,2684.8,3.72467]
[1739640737387,4.98923721,2684.9,2684.8,4.51317]
[1739640739162,4.98923721,2685.4,2684.8,0.7885]
[1739640739391,4.98923721,2685.4,2685.0,3.72438]
[1739640739558,0.04655146,2685.3,2685.0,3.72438]
[1739640739757,5.03578967,2685.4,2685.0,3.72438]
[1739640740058,4.98923721,2685.4,2685.1,3.72421]
[1739640740485,4.98923721,2685.4,2684.9,3.72441]
[1739640740687,0.49892372,2685.3,2684.8,3.72458]
[1739640740880,0.49892372,2685.3,2684.9,3.72444]
[1739640741391,0.49892372,2685.3,2684.8,3.72458]
[1739640742258,0.49892372,2685.3,2684.9,3.72445]
[1739640742578,4.98923721,2685.4,2685.0,3.72431]
[1739640742777,4.98923721,2685.4,2684.9,3.72445]
[1739640743177,0.04655366,2685.3,2684.9,7.44889]
[1739640743491,0.04655366,2685.3,2684.9,3.72444]
[1739640743492,4.98923721,2685.2,2684.9,3.72444]
[1739640744005,4.98923721,2685.2,2684.9,7.44888]
[1739640744161,4.98923721,2685.2,2684.9,3.72444]
[1739640744492,5.4928163,2685.2,2684.9,3.72444]
[1739640744692,5.4928163,2685.2,2684.9,7.44887]
[1739640745004,5.4928163,2685.2,2684.8,3.72461]
[1739640745654,0.04655627,2685.1,2684.7,7.44942]
[1739640746079,5.4928163,2685.2,2684.9,3.72446]
[1739640746265,4.98923721,2685.2,2684.6,0.752]
[1739640746481,4.98923721,2685.2,2684.9,3.72446]
[1739640748805,4.98923721,2685.2,2684.9,3.72445]
[1739640748989,4.98923721,2685.2,2685.1,3.72425]
[1739640750798,4.98923721,2685.2,2685.0,3.72438]
[1739640751870,4.98923721,2685.2,2685.0,7.4487]
[1739640752068,4.98923721,2685.2,2685.0,7.44862]
[1739640752284,4.98923721,2685.2,2685.1,4.54855]
[1739640753111,4.98923721,2685.2,2685.1,3.72425]
[1739640754518,4.98923721,2685.2,2685.1,4.551535]
[1739640755633,4.98923721,2685.2,2685.0,3.7243]
[1739640756221,4.98923721,2685.2,2685.0,7.44861]
[1739640756426,4.98923721,2685.2,2685.1,3.72425]
[1739640757004,4.98923721,2685.2,2685.0,3.7243]
[1739640757739,4.98923721,2685.2,2685.1,3.72425]
[1739640759235,4.98923721,2685.2,2685.1,4.54855]
[1739640759798,4.98923721,2685.2,2685.0,3.7243]
[1739640760503,4.98923721,2685.2,2684.9,3.72452]
[1739640760705,4.98923721,2685.2,2684.5,6.83937571]
[1739640760706,9.21701607,2685.2,2684.6,7.44973]
[1739640761021,9.21701607,2685.2,2684.7,3.7248]
[1739640761203,4.98923721,2685.1,2684.5,0.8243]
[1739640761407,4.98923721,2685.1,2684.4,12.08316]
[1739640761408,5.03579341,2685.1,2684.4,12.08316]
[1739640761627,5.03579341,2685.1,2684.6,3.72487]
[1739640762019,5.03579341,2685.1,2684.6,7.44973]
[1739640762442,5.03579341,2685.1,2684.7,3.7248]
[1739640764067,4.98923721,2685.1,2684.6,3.72486]
[1739640764855,4.98923721,2685.1,2684.7,3.72481]
[1739640765833,4.98923721,2685.1,2684.8,3.72465]
[1739640766234,4.98923721,2685.1,2684.8,7.44922]
[1739640766446,4.98923721,2685.1,2684.9,3.72442]
[1739640766648,4.98923721,2685.1,2684.8,3.72457]
[1739640766873,4.98923721,2685.1,2684.7,3.72479]
[1739640769178,4.98923721,2685.1,2684.8,3.72459]
[1739640769478,4.98923721,2685.1,2684.8,3.72456]
[1739640771368,5.86055893,2685.1,2684.6,3.72486]
[1739640772480,9.58480893,2685.1,2684.6,3.72486]
[1739640772865,5.86055893,2685.1,2684.7,3.7248]
[1739640773067,5.90711561,2685.1,2684.7,3.7248]
[1739640773308,5.03579389,2685.1,2684.6,3.72486]
[1739640773513,4.98923721,2685.1,2684.3,3.0]
[1739640773716,4.98923721,2685.1,2684.7,3.72472]
[1739640773864,4.98923721,2685.1,2684.7,7.44944]
[1739640774485,4.98923721,2685.1,2684.7,3.72472]
[1739640774782,4.98923721,2685.1,2684.7,3.72468]
[1739640775182,5.03579389,2685.1,2684.7,3.72468]
[1739640776512,4.98923721,2685.0,2684.5,3.72495]
[1739640776811,0.04656159,2684.9,2684.5,3.72495]
[1739640777383,4.98923721,2684.8,2684.3,3.72528]
[1739640777961,0.04656542,2684.7,2684.3,3.72528]
[1739640778660,3.77139542,2684.7,2684.2,3.72549]
[1739640778838,4.50663947,2684.7,2684.2,3.72549]
[1739640779144,0.04656778,2684.6,2684.2,3.72549]
[1739640779340,4.50663947,2684.7,2684.2,3.72549]
[1739640779532,4.55320586,2684.7,2684.2,3.72549]
[1739640779736,3.72495,2684.6,2684.1,3.72558]
[1739640779914,0.04656952,2684.5,2684.1,3.72558]
[1739640780115,4.98923721,2684.4,2684.1,3.72558]
[1739640780345,4.98923721,2684.4,2684.2,3.72549]
[1739640781112,4.98923721,2684.4,2684.3,3.72536]
[1739640781312,4.98923721,2684.4,2684.2,3.72543]
[1739640782247,4.98923721,2684.4,2684.3,3.72536]
[1739640782636,4.98923721,2684.4,2684.3,4.52406]
[1739640783832,4.98923721,2684.4,2684.3,7.52406]
[1739640785150,8.71297721,2685.5,2684.9,3.72443]
[1739640785375,4.98923721,2685.4,2684.9,3.72443]
[1739640785653,6.49377993,2685.4,2684.9,3.72443]
[1739640786149,13.94160993,2685.4,2684.8,3.72464]
[1739640786449,13.94160993,2685.4,2684.8,3.72457]
[1739640786450,10.21768993,2685.4,2684.8,3.72457]
[1739640786848,10.21768993,2685.4,2684.8,7.44916]
[1739640787153,10.21768993,2685.4,2684.9,3.72451]
[1739640787354,0.52565714,2685.3,2684.9,3.72451]
[1739640788219,8.71314721,2685.4,2684.9,3.72451]
[1739640790559,3.724,2685.3,2684.7,7.44951]
[1739640790760,3.724,2685.3,2684.8,3.72466]
[1739640790962,3.724,2685.3,2684.7,7.44946]
[1739640791162,4.98923721,2685.2,2684.8,3.72465]
[1739640791677,4.98923721,2685.2,2684.7,3.72473]
[1739640791982,4.98923721,2685.2,2684.8,3.72465]
[1739640794871,4.98923721,2685.2,2684.7,3.72473]
[1739640795076,4.98923721,2685.2,2684.8,4.47946]
[1739640795287,4.98923721,2685.2,2684.9,3.72441]
[1739640797173,4.98923721,2685.1,2684.9,3.72441]
[1739640797834,4.98923721,2685.1,2685.0,4.47929]
[1739640800765,4.98923721,2685.1,2684.7,0.7549]
[1739640801064,4.98923721,2685.1,2684.8,3.72459]
[1739640801460,4.98923721,2685.1,2685.0,3.72439]
[1739640802068,4.98923721,2685.1,2684.9,3.72452]
[1739640802566,4.98923721,2685.1,2684.9,3.72445]
[1739640802878,4.98923721,2685.1,2685.0,3.72439]
[1739640803034,4.98923721,2685.1,2684.9,3.72445]
[1739640803234,4.98923721,2685.1,2685.0,3.72439]
[1739640804786,4.98923721,2685.1,2684.8,3.72467]
[1739640804959,4.98923721,2685.1,2684.9,3.72448]
[1739640805573,4.98923721,2685.1,2684.9,7.44892]
[1739640805882,4.98923721,2685.1,2685.0,3.72439]
[1739640806777,4.98923721,2685.1,2684.9,3.72444]
[1739640806984,4.98923721,2685.1,2684.9,7.44889]
[1739640807152,4.98923721,2685.1,2684.7,4.47961]
[1739640807347,5.48816093,2685.1,2684.5,4.4799]
[1739640807678,3.72469,2684.8,2684.3,3.72527]
[1739640807847,4.98923721,2684.7,2684.5,3.72496]
[1739640808473,4.98923721,2684.7,2684.5,7.44997]
[1739640808676,4.98923721,2684.7,2684.6,3.72494]
[1739640809685,4.98923721,2684.7,2684.6,4.54542]
[1739640809897,4.98923721,2684.7,2684.6,5.35732]
[1739640811585,4.98923721,2685.5,2685.0,0.8119]
[1739640811788,4.98923721,2685.4,2685.2,3.72404]
[1739640812089,4.98923721,2685.4,2685.3,3.72397]
[1739640812395,4.98923721,2685.4,2685.3,4.53587]
[1739640812554,4.98923721,2685.4,2685.3,5.33799692]
[1739640814200,4.98923721,2686.0,2685.3,4.52604692]
[1739640814403,4.98923721,2686.0,2685.9,4.53504]
[1739640814888,4.98923721,2686.0,2685.8,3.72328]
[1739640815079,4.98923721,2686.0,2685.9,3.72314]
[1739640815390,4.98923721,2686.0,2685.8,3.72328]
[1739640815549,4.98923721,2686.0,2685.6,4.53539]
[1739640815749,5.48816093,2686.0,2685.4,3.72372]
[1739640816186,5.48816093,2686.0,2685.6,3.72353]
[1739640816594,5.48816093,2686.0,2685.6,7.447]
[1739640816797,5.48816093,2686.0,2685.4,3.72373]
[1739640816954,4.98923721,2686.0,2685.6,3.72354]
[1739640817161,0.0465418,2685.9,2685.4,3.72373]
[1739640817467,0.0465418,2685.9,2685.4,3.72372]
[1739640817672,4.98923721,2685.8,2685.2,4.53594]
[1739640817854,4.98923721,2685.8,2685.3,3.72397]
[1739640818058,4.98923721,2685.8,2685.4,3.72371]
[1739640818456,4.98923721,2685.8,2685.6,3.72351]
[1739640820401,4.98923721,2685.8,2685.4,3.72371]
[1739640820561,4.98923721,2685.8,2685.2,4.536]
[1739640820761,4.98923721,2685.8,2685.2,3.7241]
[1739640821200,4.98923721,2685.8,2685.3,3.72389]
[1739640821397,4.98923721,2685.8,2685.4,3.72374]
[1739640821398,5.03578213,2685.8,2685.4,3.72374]
[1739640821577,4.98923721,2685.8,2685.5,3.72366]
[1739640821960,4.98923721,2685.8,2685.4,3.72374]
[1739640822588,4.98923721,2685.8,2685.2,3.72406]
[1739640822589,5.03578279,2685.8,2685.2,3.72406]
[1739640822777,8.71261721,2685.8,2685.2,3.72402]
[1739640822977,1.24357972,2685.7,2685.2,3.72402]
[1739640823180,4.96701972,2685.7,2685.2,3.72402]
[1739640823498,8.75939617,2685.6,2685.0,7.4486]
[1739640823673,8.75939617,2685.6,2684.7,0.7856]
[1739640823674,3.72388,2685.4,2684.8,3.72458]
[1739640823874,4.98923721,2685.3,2684.8,3.72458]
[1739640824277,9.49992735,2685.3,2684.6,3.72484]
[1739640824477,8.75991393,2685.2,2684.7,3.72481]
[1739640824699,8.71335721,2685.2,2684.7,3.72481]
[1739640825215,4.98923721,2685.2,2684.7,3.72481]
[1739640825411,0.0465569,2685.1,2684.7,3.72481]
[1739640827406,4.98923721,2685.2,2684.8,3.72458]
[1739640827568,5.93922194,2685.2,2684.8,3.72458]
[1739640829002,5.93922194,2685.2,2684.9,3.72452]
[1739640829314,4.98923721,2685.2,2685.0,3.72435]
[1739640829609,4.98923721,2685.2,2684.8,3.72458]
[1739640829776,4.98923721,2685.1,2684.8,3.72458]
[1739640829971,4.98923721,2685.1,2684.9,3.72444]
[1739640832110,4.98923721,2685.1,2685.0,3.72439]
[1739640832675,4.98923721,2685.1,2684.9,3.72447]
[1739640834108,4.98923721,2685.1,2685.0,4.52809]
[1739640834784,4.98923721,2685.8,2685.4,3.72381]
[1739640834973,4.98923721,2685.7,2685.4,7.44756]
[1739640835199,4.98923721,2685.7,2685.5,3.72369]
[1739640835408,4.98923721,2685.7,2685.4,3.72375]
[1739640835724,4.98923721,2685.7,2685.4,3.72372]
[1739640835926,5.48816093,2685.7,2685.2,3.72401]
[1739640836224,4.98923721,2685.7,2685.4,3.72382]
[1739640836979,4.98923721,2685.7,2685.2,7.44805]
[1739640837174,5.03578615,2685.7,2685.2,3.72401]
[1739640837729,5.03578614,2685.7,2685.2,3.72401]
[1739640838237,4.98923721,2685.7,2685.3,3.72395]
[1739640838439,5.90704083,2685.7,2685.2,3.72401]
[1739640838606,4.98923721,2685.6,2685.2,3.72401]
[1739640840026,0.04654893,2685.5,2685.2,3.72401]
[1739640840239,4.98923721,2685.6,2685.2,7.44804]
[1739640840610,4.98923721,2685.6,2685.2,11.01741571]
[1739640840808,4.98923721,2685.6,2685.2,7.29338571]
[1739640841014,9.67583229,2685.6,2685.2,3.56937571]
[1739640841432,3.72384,2685.4,2684.9,3.56937571]
[1739640841599,3.72384,2685.4,2684.9,7.29388571]
[1739640844512,4.98923721,2685.3,2684.9,7.29388571]
[1739640845239,4.98923721,2685.3,2684.9,3.56937571]
[1739640845567,4.98923721,2685.3,2685.2,7.29348571]
[1739640846043,4.98923721,2685.3,2685.2,3.56937571]
[1739640846353,4.98923721,2685.3,2684.9,7.29382571]
[1739640846550,0.04655385,2685.2,2684.9,3.56937571]
[1739640846847,4.98923721,2685.1,2684.9,3.56937571]
[1739640847212,5.48816093,2685.1,2684.9,3.56937571]
[1739640848232,4.98923721,2685.1,2684.9,3.56937571]
[1739640849932,4.98923721,2685.1,2684.9,7.29387571]
[1739640850341,4.98923721,2685.1,2684.8,3.72464]
[1739640850667,3.72385,2685.4,2684.6,3.72487]
[1739640850668,4.98923721,2685.0,2684.6,11.01910571]
[1739640850862,4.98923721,2685.0,2684.6,7.29423571]
[1739640852157,0.04655994,2684.9,2684.6,3.56937571]
[1739640853256,0.04655994,2684.9,2684.5,3.72508]
[1739640853556,0.92258165,2684.9,2684.5,3.72508]
[1739640854369,3.72472,2684.8,2684.3,8.04599571]
[1739640854539,0.92258165,2684.9,2684.3,7.29465571]
[1739640854540,5.03579888,2684.7,2684.3,7.29465571]
[1739640855375,4.98923721,2684.7,2684.3,7.29464571]
[1739640855540,4.98923721,2684.7,2684.4,3.72513]
[1739640856262,4.98923721,2684.7,2684.5,3.72501]
[1739640856591,4.98923721,2684.7,2684.6,7.29431571]
[1739640857180,4.98923721,2684.7,2684.6,8.47436828]
[1739640857360,4.98923721,2684.7,2684.6,9.25556828]
[1739640858853,0.3728,2685.6,2684.6,9.25556828]
[1739640858854,4.98923721,2685.4,2684.7,0.7812]
[1739640859048,4.98923721,2685.4,2685.2,3.72398]
[1739640859247,4.98923721,2685.4,2685.2,7.44801]
[1739640859492,4.98923721,2685.4,2685.2,3.72398]
[1739640859792,4.98923721,2685.4,2685.3,3.72397]
[1739640860092,4.98923721,2685.4,2685.2,7.44801]
[1739640860391,4.98923721,2685.4,2685.2,3.72398]
[1739640860643,4.98923721,2685.4,2685.3,3.72397]
[1739640860784,4.98923721,2685.4,2685.2,3.72398]
[1739640860955,4.98923721,2685.4,2685.1,3.56937571]
[1739640861565,4.98923721,2685.4,2685.2,3.72411]
[1739640862600,4.98923721,2685.4,2685.1,3.56937571]
[1739640862803,5.52544093,2685.4,2684.9,3.7245]
[1739640862988,5.57199561,2685.4,2684.8,7.29396571]
[1739640863195,9.29585561,2685.4,2684.8,11.01853571]
[1739640863372,9.24930093,2685.4,2684.8,11.01853571]
[1739640863575,0.92493009,2685.3,2684.8,11.01853571]
[1739640863860,3.72412,2685.2,2684.7,3.72478]
[1739640864160,4.98923721,2685.1,2684.8,7.29403571]
[1739640865662,4.98923721,2685.1,2684.8,7.29396571]
[1739640865892,4.98923721,2685.1,2684.8,7.29395571]
[1739640866091,4.98923721,2685.1,2685.0,3.72439]
[1739640867703,4.98923721,2685.1,2684.8,7.29393571]
[1739640867872,5.55830326,2685.1,2684.8,7.29393571]
[1739640868076,5.55830326,2685.1,2684.8,11.01852571]
[1739640868339,4.98923721,2685.1,2685.0,3.72439]
[1739640869378,4.98923721,2685.1,2685.0,4.50549]
[1739640872259,4.98923721,2685.1,2685.0,3.72439]
[1739640872959,4.98923721,2685.1,2684.9,3.72452]
[1739640873125,4.98923721,2685.1,2684.9,7.44897]
[1739640874246,4.98923721,2685.0,2684.7,3.72475]
[1739640875172,4.98923721,2685.0,2684.5,7.29436571]
[1739640875344,4.98923721,2685.0,2684.6,3.72489]
[1739640875967,0.04656042,2684.9,2684.5,7.29436571]
[1739640876622,2.236,2684.9,2684.5,11.01935571]
[1739640876827,4.98923721,2685.0,2684.5,11.01935571]
[1739640877226,4.98923721,2684.9,2684.5,11.01935571]
[1739640877458,4.98923721,2684.9,2684.5,11.01934571]
[1739640877671,9.72347994,2684.9,2684.5,3.56937571]
[1739640877874,9.67691936,2684.9,2684.5,3.56937571]
[1739640879766,9.67691936,2684.9,2684.3,7.45052]
[1739640880066,9.67691936,2684.9,2684.4,3.72521]
[1739640880628,0.04656438,2684.8,2684.4,3.72521]
[1739640881264,9.67691936,2684.9,2684.4,3.72521]
[1739640881479,5.95237936,2684.9,2684.2,4.35047571]
[1739640881640,4.98923721,2684.9,2684.4,3.72521]
[1739640881978,4.98923721,2684.9,2684.6,3.72494]
[1739640882531,4.98923721,2684.9,2684.8,3.72467]
[1739640884176,4.98923721,2684.9,2684.8,7.29404571]
[1739640887318,4.98923721,2684.9,2684.8,8.06504571]
[1739640887516,4.98923721,2684.9,2684.8,9.31865014]
[1739640888733,4.98923721,2685.8,2684.8,5.59398014]
[1739640888882,4.98923721,2685.8,2685.5,3.72358]
[1739640889287,4.98923721,2685.8,2685.6,3.72353]
[1739640889799,4.98923721,2685.8,2685.5,3.72358]
[1739640890099,4.98923721,2685.8,2685.7,3.72342]
[1739640893814,4.98923721,2685.8,2685.6,3.72345]
[1739640894646,5.48816093,2685.8,2685.4,3.56937571]
[1739640894811,5.48816093,2685.8,2685.4,3.7238]
[1739640895938,5.53470796,2685.8,2685.3,3.7239]
[1739640896307,5.53470796,2685.8,2685.3,3.72388]
[1739640896739,9.25799796,2685.8,2685.3,3.72388]
[1739640896958,0.9257998,2685.7,2685.3,3.72388]
[1739640897155,0.04654814,2685.6,2685.3,7.44778]
[1739640897452,0.04654814,2685.6,2685.3,3.72388]
[1739640897615,0.04654814,2685.6,2685.1,7.29357571]
[1739640897616,3.77018814,2685.6,2685.1,3.7242]
[1739640898147,4.98923721,2685.5,2685.1,3.7242]
[1739640898304,4.98923721,2685.5,2685.0,3.72438]
[1739640898305,0.65202933,2685.4,2685.0,3.72438]
[1739640899068,0.60547634,2685.4,2685.1,3.72425]
[1739640899769,0.60547634,2685.4,2685.2,3.72409]
[1739640900045,4.98923721,2685.5,2685.1,3.72417]
[1739640900345,4.98923721,2685.5,2685.1,7.44835]
[1739640900549,0.04655289,2685.4,2685.0,3.72436]
[1739640901409,8.71293721,2685.5,2685.0,3.72436]
[1739640901612,0.04655292,2685.4,2685.0,3.72436]
[1739640902456,0.04655292,2685.4,2684.9,3.72444]
[1739640902457,4.98923721,2685.5,2684.8,3.56937571]
[1739640902658,4.98923721,2685.4,2685.1,3.72415]
[1739640903028,0.04655286,2685.3,2684.9,3.72446]
[1739640903328,3.72426,2685.1,2684.6,3.7249]
[1739640903642,0.04656047,2685.0,2684.6,3.7249]
[1739640904029,0.04656047,2685.0,2684.5,3.725]
[1739640904234,3.72426,2685.1,2684.5,3.725]
[1739640904434,4.98923721,2685.2,2684.7,3.72473]
[1739640904756,0.87132572,2685.1,2684.7,3.72473]
[1739640905250,0.04656094,2685.0,2684.3,3.72527]
[1739640905548,3.72454,2684.9,2684.3,3.72524]
[1739640905762,4.98923721,2684.8,2684.3,3.72524]
[1739640905991,3.72482,2684.7,2684.2,3.72546]
[1739640906163,0.04656772,2684.6,2684.1,3.72558]
[1739640906359,4.59619772,2684.7,2684.1,3.72558]
[1739640906574,0.04656876,2684.6,2684.1,3.72558]
[1739640906952,3.77151876,2684.6,2684.1,3.72558]
[1739640907148,9.55114886,2684.5,2683.9,12.08482]
[1739640907353,4.98923721,2684.5,2683.9,12.08482]
[1739640907561,4.98923721,2684.5,2684.1,3.72563]
[1739640907854,4.98923721,2684.5,2683.9,12.0848]
[1739640908061,4.98923721,2684.5,2684.0,3.72576]
[1739640908254,5.86065993,2684.5,2684.0,3.72576]
[1739640908660,5.86065993,2684.5,2684.1,3.72563]
[1739640909076,5.86065993,2684.5,2684.2,3.72541]
[1739640910566,3.72522,2684.4,2683.9,8.359]
[1739640910763,1.15877714,2684.4,2684.0,3.72573]
[1739640910973,4.88402714,2684.4,2683.9,8.359]
[1739640911173,4.88402714,2684.4,2683.9,12.0849]
[1739640911574,4.88402714,2684.4,2683.9,8.359]
[1739640912894,4.98923721,2684.3,2683.9,8.359]
[1739640913195,4.98923721,2684.2,2683.9,8.359]
[1739640913977,4.98923721,2684.2,2683.9,12.08482]
[1739640914698,4.98923721,2684.2,2684.0,3.72565]
[1739640914898,4.98923721,2684.2,2684.1,3.72564]
[1739640915105,4.98923721,2684.2,2684.0,3.72565]
[1739640915792,5.48816093,2684.2,2683.9,12.0849]
[1739640916390,4.98923721,2684.2,2683.9,12.0849]
[1739640916865,0.04657291,2684.1,2683.9,8.359]
[1739640917078,4.98923721,2684.0,2683.5,3.72633]
[1739640917273,0.04657984,2683.9,2683.3,7.29606571]
[1739640917479,4.98923721,2683.8,2683.4,3.72652]
[1739640917679,4.98923721,2683.8,2683.3,7.29606571]
[1739640918180,4.98923721,2683.8,2683.3,7.45332]
[1739640918582,4.98923721,2683.8,2683.3,3.72666]
[1739640918782,1.15405178,2683.7,2683.3,3.72666]
[1739640918979,1.15405178,2683.7,2683.1,3.72699]
[1739640919231,4.88027178,2683.7,2683.1,3.72699]
[1739640919604,4.98923721,2683.6,2682.9,4.50554]
[1739640919784,3.72647,2683.5,2682.9,3.7272]
[1739640919986,0.04658731,2683.4,2682.9,7.45442]
[1739640920213,0.04658731,2683.4,2682.7,7.34767571]
[1739640920214,4.98923721,2683.3,2682.7,8.07518571]
[1739640920427,4.98923721,2683.3,2682.7,7.29684571]
[1739640920428,4.98923721,2683.2,2682.7,7.29684571]
[1739640920581,0.04659094,2683.1,2682.7,7.29684571]
[1739640920787,5.86549902,2683.2,2682.7,7.29684571]
[1739640922518,9.59240902,2683.2,2682.6,8.361]
[1739640922817,5.86549902,2683.2,2682.6,12.08862]
[1739640923024,5.86549902,2683.2,2682.8,3.72744]
[1739640923589,5.86549902,2683.2,2682.8,3.72735]
[1739640924027,4.98923721,2683.2,2682.9,3.72719]
[1739640924525,0.04659084,2683.1,2682.9,3.72719]
[1739640924748,4.98923721,2683.0,2682.8,3.72744]
[1739640924948,4.98923721,2683.0,2682.7,3.72752]
[1739640926303,4.98923721,2683.0,2682.6,8.361]
[1739640926304,0.04659557,2682.9,2682.6,8.361]
[1739640926933,5.86084993,2683.0,2682.7,3.72758]
[1739640927129,5.86084993,2683.0,2682.6,8.361]
[1739640927346,0.04659638,2682.9,2682.6,12.08864]
[1739640927651,4.98923721,2682.8,2682.6,8.361]
[1739640928026,4.98923721,2682.7,2682.6,8.361]
[1739640928211,4.98923721,2682.7,2682.2,7.45638]
[1739640928412,8.71686721,2682.7,2682.2,3.72818]
[1739640929117,4.98923721,2682.7,2682.2,3.72818]
[1739640929339,5.03584052,2682.7,2682.1,7.30278571]
[1739640929507,0.97221045,2682.6,2682.1,7.30278571]
[1739640930539,4.98923721,2682.5,2682.1,0.005]
[1739640930742,4.98923721,2682.5,2680.5,3.56937571]
[1739640930743,2.236,2682.0,2680.5,3.56937571]
[1739640930960,3.72945,2681.4,2680.7,3.73027]
[1739640931242,3.0,2681.7,2680.5,3.56937571]
[1739640931243,2.236,2681.7,2680.5,3.56937571]
[1739640931444,3.72912,2681.6,2680.9,3.72999]
[1739640931644,3.72936,2681.5,2680.8,3.73016]
[1739640932134,3.72936,2681.5,2680.7,3.73032]
[1739640932135,3.72953,2681.3,2680.7,3.73032]
[1739640932331,3.75165377,2680.9,2679.4,0.7648]
[1739640932503,3.72997,2681.0,2679.6,3.73182]
[1739640932707,3.72997,2681.0,2679.5,3.56937571]
[1739640932708,0.372953,2681.2,2680.3,3.56937571]
[1739640932909,5.26323721,2681.3,2680.4,0.7648]
[1739640933141,5.26323721,2681.3,2680.9,3.72998]
[1739640933358,5.26323721,2681.3,2680.8,3.7302]
[1739640933544,5.26323721,2681.3,2680.9,3.80215619]
[1739640933759,5.26323721,2681.3,2680.9,0.07217619]
[1739640934060,0.5436,2681.9,2681.0,3.72995]
[1739640934259,0.427218,2681.8,2681.2,3.72954]
[1739640934412,3.729,2681.7,2681.1,0.072244]
[1739640934613,0.04662251,2681.6,2681.3,0.07211324]
[1739640934865,0.04662251,2681.6,2680.8,3.73021]
[1739640935172,3.72937,2681.5,2681.4,0.07211324]
[1739640935324,3.72937,2681.5,2680.5,3.73061]
[1739640935325,3.0,2681.4,2680.5,3.73061]
[1739640935649,3.72957,2681.3,2680.6,3.80263682]
[1739640935820,3.72957,2681.3,2680.6,0.07215682]
[1739640935821,8.71894721,2681.2,2680.6,0.07215682]
[1739640936027,0.04663256,2681.1,2680.6,0.07215682]